fUST/lending_fUST_20250624
["ID","MTS","AMOUNT","RATE_DAILY","PERIOD"]
[367384955,1750776644527,-1142.84,0.0001919,2]
[367384957,1750776644536,-784.15,0.0001919,2]
[367384959,1750776644545,-3133.05,0.0001919,2]
[367384961,1750776644555,-3236.21,0.0001919,2]
[367384963,1750776644564,-599.27,0.0001919,2]
[367384965,1750776644573,-1449.18,0.0001919,2]
[367384967,1750776644583,-1075.91,0.0001919,2]
[367384969,1750776644592,-1071.85,0.0001919,2]
[367384971,1750776644602,-460.0,0.0001919,2]
[367384974,1750776644611,-636.79,0.0001919,2]
[367384976,1750776644620,-460.0,0.0001919,2]
[367384978,1750776644629,-460.0,0.0001919,2]
[367384979,1750776644638,-460.0,0.0001919,2]
[367384981,1750776644647,-2309.53,0.0001919,2]
[367384983,1750776644657,-460.0,0.0001919,2]
[367384985,1750776644665,-2893.22,0.0001919,2]
[367384987,1750776644675,-4129.31,0.0001919,2]
[367384990,1750776644684,-460.0,0.0001919,2]
[367384992,1750776644695,-532.61,0.0001919,2]
[367384994,1750776644704,-460.0,0.0001919,2]
[367384995,1750776644713,-460.0,0.0001919,2]
[367384997,1750776644723,-460.0,0.0001919,2]
[367384999,1750776644732,-1919.23,0.0001919,2]
[367385002,1750776644742,-935.18,0.0001919,2]
[367385004,1750776644751,-460.0,0.0001919,2]
[367385005,1750776644761,-460.0,0.0001919,2]
[367385008,1750776644770,-460.0,0.0001919,2]
[367385009,1750776644779,-1182.99,0.0001919,2]
[367385011,1750776644788,-460.0,0.0001919,2]
[367385014,1750776644798,-1115.61,0.0001919,2]
[367385015,1750776644807,-1411.92,0.0001919,2]
[367385017,1750776644816,-1102.7,0.0001919,2]
[367385019,1750776644826,-460.0,0.00019191,2]
[367385021,1750776644834,-460.0,0.00019191,2]
[367385024,1750776644844,-3437.26,0.00019191,2]
[367385025,1750776644853,-460.0,0.00019191,2]
[367385027,1750776644863,-460.0,0.00019191,2]
[367385029,1750776644872,-984.29,0.00019191,2]
[367385031,1750776644881,-470.72,0.00019191,2]
[367385033,1750776644891,-1485.9,0.00019191,2]
[367385035,1750776644900,-460.0,0.00019191,2]
[367385037,1750776644909,-460.0,0.00019191,2]
[367385040,1750776644918,-460.0,0.00019191,2]
[367385042,1750776644928,-460.0,0.00019191,2]
[367385044,1750776644938,-460.0,0.00019191,2]
[367385046,1750776644948,-527.15,0.00019191,2]
[367385048,1750776644958,-460.0,0.00019191,2]
[367385049,1750776644967,-513.71,0.00019191,2]
[367385052,1750776644977,-1035.89,0.00019191,2]
[367385053,1750776644986,-460.0,0.00019191,2]
[367385055,1750776644995,-364.48113077,0.00019191,2]
[367385057,1750776645004,-1190.38,0.00019191,2]
[367385060,1750776645014,-479.1,0.00019191,2]
[367385061,1750776645023,-460.0,0.00019192,2]
[367385063,1750776645032,-646.72,0.00019192,2]
[367385066,1750776645041,-460.0,0.00019192,2]
[367385067,1750776645050,-460.0,0.00019192,2]
[367385070,1750776645060,-460.0,0.00019192,2]
[367385072,1750776645069,-460.0,0.00019192,2]
[367385074,1750776645078,-818.14,0.00019192,2]
[367385076,1750776645093,-460.0,0.00019192,2]
[367385078,1750776645104,-929.49,0.00019192,2]
[367385079,1750776645114,-460.0,0.00019192,2]
[367385081,1750776645123,-460.0,0.00019192,2]
[367385084,1750776645133,-460.0,0.00019192,2]
[367385085,1750776645143,-460.0,0.00019192,2]
[367385087,1750776645152,-460.0,0.00019192,2]
[367385090,1750776645162,-460.0,0.00019192,2]
[367385092,1750776645171,-202.4,0.00019192,2]
[367385093,1750776645181,-460.0,0.00019192,2]
[367385095,1750776645191,-1132.91,0.00019192,2]
[367385097,1750776645200,-460.0,0.00019192,2]
[367385099,1750776645209,-460.0,0.00019192,2]
[367385101,1750776645218,-460.0,0.00019192,2]
[367385103,1750776645227,-671.83,0.00019192,2]
[367385105,1750776645236,-460.0,0.00019192,2]
[367385107,1750776645245,-3348.99,0.00019192,2]
[367385109,1750776645254,-460.0,0.00019192,2]
[367385111,1750776645263,-1320.81,0.00019192,2]
[367385113,1750776645272,-460.0,0.00019192,2]
[367385115,1750776645282,-460.0,0.00019192,2]
[367385117,1750776645292,-683.29,0.00019192,2]
[367385119,1750776645301,-881.54,0.00019192,2]
[367385121,1750776645309,-460.0,0.00019192,2]
[367385123,1750776645318,-460.0,0.00019192,2]
[367385125,1750776645327,-1141.53,0.00019192,2]
[367385128,1750776645337,-460.0,0.00019192,2]
[367385130,1750776645346,-3069.37,0.00019192,2]
[367385132,1750776645356,-460.0,0.00019192,2]
[367385134,1750776645365,-460.0,0.00019192,2]
[367385136,1750776645375,-460.0,0.00019192,2]
[367385138,1750776645384,-1425.55,0.00019192,2]
[367385140,1750776645394,-460.0,0.00019192,2]
[367385141,1750776645403,-668.83,0.00019192,2]
[367385143,1750776645412,-2592.08,0.00019192,2]
[367385145,1750776645421,-8030.0,0.00019192,2]
[367385148,1750776645430,-772.56,0.00019192,2]
[367385150,1750776645440,-460.0,0.00019192,2]
[367385152,1750776645449,-460.0,0.00019192,2]
[367385154,1750776645459,-1189.8,0.00019192,2]
[367385156,1750776645468,-888.38,0.00019193,2]
[367385157,1750776645477,-460.0,0.00019193,2]
[367385160,1750776645486,-4710.01,0.00019193,2]
[367385162,1750776645496,-2141.74,0.00019193,2]
[367385164,1750776645506,-2567.14,0.00019193,2]
[367385166,1750776645515,-460.0,0.00019193,2]
[367385167,1750776645524,-460.0,0.00019193,2]
[367385170,1750776645535,-508.6,0.00019193,2]
[367385172,1750776645544,-460.0,0.00019193,2]
[367385174,1750776645553,-1837.24,0.00019193,2]
[367385175,1750776645563,-460.0,0.00019193,2]
[367385177,1750776645572,-151.0,0.000192,2]
[367385179,1750776645582,-151.0,0.000192,2]
[367385181,1750776645591,-460.0,0.0001929,2]
[367385183,1750776645600,-460.0,0.0001929,2]
[367385185,1750776645609,-460.0,0.0001929,2]
[367385187,1750776645619,-582.87361655,0.0001929,2]
[367385189,1750776645629,-460.0,0.0001929,2]
[367385191,1750776645638,-460.0,0.0001929,2]
[367385193,1750776645648,-249.41677295,0.0001929,2]
[367385195,1750776645657,-567.86,0.0001929,2]
[367385197,1750776645667,-460.0,0.0001929,2]
[367385199,1750776645675,-460.0,0.00019291,2]
[367385201,1750776645684,-460.0,0.00019291,2]
[367385203,1750776645695,-460.0,0.00019291,2]
[367385205,1750776645705,-460.0,0.00019291,2]
[367385207,1750776645715,-460.0,0.00019291,2]
[367385209,1750776645724,-460.0,0.00019291,2]
[367385211,1750776645734,-460.0,0.00019291,2]
[367385213,1750776645743,-460.0,0.00019291,2]
[367385215,1750776645753,-365.13372979,0.00019291,2]
[367385218,1750776645763,-46418.16953637,0.00019328,2]
[367385221,1750776645773,-104756.84406824,0.00019328,2]
[367385225,1750776645783,-100000.0,0.00019329,2]
[367385228,1750776645792,-1157.0,0.00019337,2]
[367385231,1750776645802,-596.0,0.00019364,2]
[367385235,1750776645811,-168.42003542,0.00019365,2]
[367385240,1750776645820,-3568.72165079,0.00019365,2]
[367385242,1750776645830,-1157.0,0.00019395,2]
[367385244,1750776645841,-151.0,0.000194,2]
[367385246,1750776645850,-151.0,0.000194,2]
[367385247,1750776645859,-500.65624776,0.00019425,2]
[367385249,1750776645868,-500.0,0.00019425,2]
[367385251,1750776645878,-500.0,0.00019425,2]
[367385253,1750776645887,-500.0,0.00019432,2]
[367385256,1750776645897,-500.0,0.00019432,2]
[367385257,1750776645907,-500.0,0.00019432,2]
[367385260,1750776645916,-500.99452249,0.00019432,2]
[367385262,1750776645925,-500.0,0.00019432,2]
[367385264,1750776645935,-500.0,0.00019432,2]
[367385266,1750776645945,-746416.83102169,0.00019441,2]
[367385350,1750776646859,-460.0,0.00018367,2]
[367385351,1750776646868,-680.28,0.00018368,2]
[367385352,1750776646878,-592.49,0.00018369,2]
[367385353,1750776646888,-460.0,0.0001837,2]
[367385354,1750776646897,-460.0,0.00018641,2]
[367385356,1750776646907,-680.28,0.00018642,2]
[367385357,1750776646916,-159.18854107,0.00018644,2]
[367385359,1750776646926,-680.28,0.00018916,2]
[367385361,1750776646935,-531.71,0.00018917,2]
[367385363,1750776646946,-680.28,0.0001919,2]
[367385365,1750776646955,-531.71,0.00019191,2]
[367385367,1750776646966,-13260.72443032,0.00019441,2]
[367385369,1750776646978,-700.56768757,0.00019441,2]
[367388319,1750776894047,577.97344,0.00024,30]
[367388321,1750777071516,3956.912484,0.00017505,2]
[367388324,1750777258495,289.02226,0.00013699,2]
[367388326,1750777273524,256.195908,0.00017364,2]
[367388331,1750777491163,561.459913,0.00024,30]
[367388412,1750777662868,234134.56598213,0.00024,30]
[367388414,1750777702343,-230.67103172,0.00018263,2]
[367388415,1750777705194,-209.94466518,0.00018263,2]
[367388418,1750777731335,-6.7173862,0.00018263,2]
[367388419,1750777731358,-160.2826138,0.00018268,2]
[367388420,1750777736302,-186.57260625,0.00018268,2]
[367388421,1750777763057,-201.0,0.00018268,2]
[367388425,1750777807858,-243.79280493,0.00018252,2]
[367388433,1750777832654,-258.63550108,0.00018252,2]
[367388435,1750777832664,-351.70321153,0.00018261,2]
[367388437,1750777832674,-1393.02862697,0.00018268,2]
[367388439,1750777832683,-5888.0,0.00018316,2]
[367388441,1750777832693,-1200.0,0.00018356,2]
[367388443,1750777832702,-300.0,0.00018357,2]
[367388445,1750777832712,-59.55965995,0.00018357,2]
[367388666,1750777838771,-240.44034005,0.00018357,2]
[367388667,1750777838782,-300.0,0.00018357,2]
[367388669,1750777838791,-272.6,0.00018357,3]
[367388670,1750777838802,-34.67175676,0.00018357,3]
[367388673,1750777838814,-783.16824324,0.00018357,3]
[367388675,1750777838823,-500.0,0.00018359,2]
[367388677,1750777838834,-587.30696007,0.00018359,2]
[367388679,1750777838843,-500.0,0.00018359,2]
[367388681,1750777838852,-500.0,0.00018359,2]
[367388683,1750777838862,-500.0,0.00018359,2]
[367388685,1750777838871,-500.0,0.00018359,2]
[367388687,1750777838880,-500.0,0.00018359,2]
[367388689,1750777838890,-519.37659483,0.00018359,2]
[367388691,1750777838899,-193.86614953,0.00018359,2]
[367388693,1750777838908,-500.0,0.00018359,2]
[367388695,1750777838918,-500.0,0.00018359,2]
[367388697,1750777838927,-500.0,0.00018359,2]
[367388699,1750777838937,-500.0,0.00018359,2]
[367388701,1750777838947,-500.0,0.00018359,2]
[367388703,1750777838956,-500.0,0.00018359,2]
[367388705,1750777838966,-438.02751829,0.00018359,2]
[367388707,1750777838975,-500.0,0.00018359,2]
[367388708,1750777838984,-500.0,0.00018359,2]
[367388710,1750777838994,-561.78570495,0.00018359,2]
[367388712,1750777839003,-500.0,0.00018359,2]
[367388714,1750777839012,-500.0,0.00018359,2]
[367388717,1750777839022,-500.0,0.00018359,2]
[367388718,1750777839031,-500.0,0.00018359,2]
[367388720,1750777839040,-500.0,0.00018359,2]
[367388722,1750777839050,-500.0,0.00018359,2]
[367388724,1750777839059,-500.0,0.00018359,2]
[367388726,1750777839068,-500.0,0.00018359,2]
[367388728,1750777839077,-500.0,0.00018359,2]
[367388730,1750777839086,-548.97795142,0.00018359,2]
[367388732,1750777839095,-300.0,0.00018359,2]
[367388734,1750777839105,-758.65008863,0.00018359,2]
[367388736,1750777839114,-758.65008863,0.00018359,2]
[367388738,1750777839124,-758.65008863,0.00018359,2]
[367388740,1750777839133,-758.65008863,0.00018359,2]
[367388742,1750777839143,-758.65008863,0.00018359,2]
[367388744,1750777839152,-758.65008863,0.00018359,2]
[367388746,1750777839161,-758.65008863,0.00018359,2]
[367388748,1750777839171,-758.65008863,0.00018359,2]
[367388750,1750777839181,-758.65008863,0.00018359,2]
[367388752,1750777839190,-758.65008863,0.00018359,2]
[367388754,1750777839199,-758.65008863,0.00018359,2]
[367388756,1750777839209,-50000.0,0.0001836,2]
[367388758,1750777839218,-460.0,0.0001836,2]
[367388760,1750777839228,-460.0,0.0001836,2]
[367388762,1750777839237,-460.0,0.0001836,2]
[367388764,1750777839246,-460.0,0.0001836,2]
[367388766,1750777839256,-486.62,0.0001836,2]
[367388768,1750777839265,-460.0,0.00018361,2]
[367388770,1750777839274,-460.0,0.00018361,2]
[367388772,1750777839283,-460.0,0.00018361,2]
[367388774,1750777839293,-460.0,0.00018361,2]
[367388776,1750777839302,-460.0,0.00018361,2]
[367388778,1750777839311,-460.0,0.00018361,2]
[367388780,1750777839320,-460.0,0.00018361,2]
[367388782,1750777839330,-827.06,0.00018361,2]
[367388784,1750777839339,-4530.48,0.00018361,2]
[367388786,1750777839348,-469.98772164,0.00018361,2]
[367388788,1750777839357,-460.0,0.00018362,2]
[367388790,1750777839366,-460.0,0.00018362,2]
[367388792,1750777839375,-460.0,0.00018362,2]
[367388794,1750777839384,-293.78300057,0.00018362,2]
[367388796,1750777839394,-430.0,0.00018363,2]
[367388798,1750777839403,-460.0,0.00018363,2]
[367388800,1750777839412,-460.0,0.00018363,2]
[367388802,1750777839421,-460.0,0.00018363,2]
[367388803,1750777839431,-3285.46,0.00018363,2]
[367388805,1750777839440,-460.0,0.00018363,2]
[367388807,1750777839449,-3790.09,0.00018363,2]
[367388809,1750777839459,-460.0,0.00018363,2]
[367388811,1750777839470,-1200.09,0.00018363,2]
[367388813,1750777839482,-460.0,0.00018363,2]
[367388815,1750777839498,-638.79,0.00018363,2]
[367388817,1750777839508,-2558.43,0.00018363,2]
[367388819,1750777839518,-460.0,0.00018363,2]
[367388821,1750777839527,-460.0,0.00018363,2]
[367388823,1750777839536,-3768.79,0.00018363,2]
[367388826,1750777839545,-460.0,0.00018363,2]
[367388827,1750777839555,-460.0,0.00018363,2]
[367388829,1750777839564,-1879.95,0.00018363,2]
[367388831,1750777839573,-1027.03,0.00018363,2]
[367388833,1750777839582,-706.73,0.00018363,2]
[367388835,1750777839591,-1146.88,0.00018363,2]
[367388837,1750777839600,-653.46,0.00018363,2]
[367388839,1750777839610,-3330.61,0.00018363,2]
[367388841,1750777839619,-460.0,0.00018363,2]
[367388843,1750777839628,-460.0,0.00018365,2]
[367388845,1750777839637,-460.0,0.00018365,2]
[367388847,1750777839646,-460.0,0.00018365,2]
[367388849,1750777839655,-460.0,0.00018365,2]
[367388851,1750777839664,-460.0,0.00018365,2]
[367388853,1750777839673,-460.0,0.00018365,2]
[367388855,1750777839685,-460.0,0.00018365,2]
[367388857,1750777839695,-460.0,0.00018365,2]
[367388859,1750777839704,-460.0,0.00018365,2]
[367388861,1750777839714,-594.71492387,0.00018365,2]
[367388863,1750777839727,-460.0,0.00018365,2]
[367388865,1750777839736,-460.0,0.00018365,2]
[367388867,1750777839745,-571.76,0.00018365,2]
[367388869,1750777839756,-460.0,0.00018365,2]
[367388871,1750777839767,-460.0,0.00018365,2]
[367388873,1750777839776,-460.0,0.00018365,2]
[367388875,1750777839785,-460.0,0.00018365,2]
[367388877,1750777839794,-460.0,0.00018365,2]
[367388878,1750777839804,-460.0,0.00018365,2]
[367388880,1750777839813,-337.37471323,0.00018365,2]
[367388882,1750777839821,-460.0,0.00018365,2]
[367388884,1750777839831,-457.6946389,0.00018365,2]
[367388886,1750777839840,-460.0,0.00018365,2]
[367388888,1750777839850,-460.0,0.00018365,2]
[367388890,1750777839859,-460.0,0.00018365,2]
[367388892,1750777839869,-460.0,0.00018365,2]
[367388894,1750777839878,-460.0,0.00018365,2]
[367388896,1750777839887,-640.45,0.00018365,2]
[367388898,1750777839896,-414.36450241,0.00018365,2]
[367388901,1750777839905,-500.0,0.00018365,2]
[367388903,1750777839914,-420.0,0.00018365,2]
[367388905,1750777839923,-460.0,0.00018365,2]
[367388907,1750777839932,-460.0,0.00018365,2]
[367388909,1750777839942,-431.73699097,0.00018365,2]
[367388911,1750777839951,-460.0,0.00018365,2]
[367388913,1750777839960,-504.42756139,0.00018365,2]
[367388915,1750777839969,-424.21525838,0.00018365,2]
[367388917,1750777839978,-460.0,0.00018365,2]
[367388919,1750777839987,-460.0,0.00018365,2]
[367388921,1750777839997,-1306.09,0.00018365,2]
[367388923,1750777840006,-460.0,0.00018365,2]
[367388925,1750777840014,-460.0,0.00018365,2]
[367388927,1750777840023,-460.0,0.00018365,2]
[367388929,1750777840032,-460.0,0.00018365,2]
[367388930,1750777840044,-1030.7,0.00018365,2]
[367388932,1750777840054,-460.0,0.00018365,2]
[367388934,1750777840063,-902.75,0.00018365,2]
[367388937,1750777840074,-460.0,0.00018365,2]
[367388939,1750777840083,-460.0,0.00018365,2]
[367388941,1750777840092,-460.0,0.00018365,2]
[367388943,1750777840102,-345.11064257,0.00018365,2]
[367388945,1750777840111,-262.14125915,0.00018365,2]
[367388947,1750777840121,-460.0,0.00018365,2]
[367388950,1750777840131,-460.0,0.00018365,2]
[367388952,1750777840140,-460.0,0.00018365,2]
[367388953,1750777840151,-460.0,0.00018365,2]
[367388955,1750777840161,-460.0,0.00018365,2]
[367388957,1750777840170,-460.0,0.00018365,2]
[367388960,1750777840181,-460.0,0.00018365,2]
[367388961,1750777840191,-539.95755019,0.00018365,2]
[367388963,1750777840200,-460.0,0.00018365,2]
[367388965,1750777840210,-460.0,0.00018365,2]
[367388966,1750777840219,-460.0,0.00018365,2]
[367388967,1750777840229,-689.07,0.00018365,2]
[367388968,1750777840238,-460.0,0.00018365,2]
[367388969,1750777840247,-460.0,0.00018365,2]
[367388970,1750777840257,-460.0,0.00018365,2]
[367388971,1750777840266,-460.0,0.00018365,2]
[367388972,1750777840275,-1656.02,0.00018365,2]
[367388974,1750777840285,-460.0,0.00018365,2]
[367388976,1750777840295,-460.0,0.00018365,2]
[367388978,1750777840304,-460.0,0.00018365,2]
[367388981,1750777840313,-460.0,0.00018365,2]
[367388982,1750777840322,-460.0,0.00018365,2]
[367388985,1750777840332,-1013.11,0.00018365,2]
[367388987,1750777840341,-460.0,0.00018365,2]
[367388989,1750777840350,-460.0,0.00018365,2]
[367388990,1750777840359,-553.29383763,0.00018365,2]
[367388992,1750777840370,-460.0,0.00018365,2]
[367388994,1750777840379,-1072.07,0.00018365,2]
[367388996,1750777840388,-746.28,0.00018365,2]
[367388998,1750777840397,-460.0,0.00018365,2]
[367389001,1750777840407,-868.04,0.00018365,2]
[367389003,1750777840417,-460.0,0.00018365,2]
[367389005,1750777840426,-460.0,0.00018365,2]
[367389007,1750777840436,-813.64,0.00018365,2]
[367389009,1750777840445,-460.0,0.00018365,2]
[367389011,1750777840454,-460.0,0.00018365,2]
[367389013,1750777840463,-460.0,0.00018365,2]
[367389015,1750777840472,-460.0,0.00018365,2]
[367389017,1750777840481,-460.0,0.00018365,2]
[367389019,1750777840490,-460.0,0.00018365,2]
[367389020,1750777840500,-460.0,0.00018365,2]
[367389022,1750777840509,-354.44033635,0.00018365,2]
[367389024,1750777840518,-460.0,0.00018366,2]
[367389026,1750777840528,-460.0,0.00018366,2]
[367389028,1750777840537,-460.0,0.00018366,2]
[367389030,1750777840546,-460.0,0.00018366,2]
[367389032,1750777840556,-460.0,0.00018366,2]
[367389035,1750777840566,-460.0,0.00018366,2]
[367389037,1750777840575,-460.0,0.00018366,2]
[367389038,1750777840584,-555.21,0.00018366,2]
[367389040,1750777840593,-1653.53,0.00018366,2]
[367389042,1750777840603,-460.0,0.00018366,2]
[367389045,1750777840612,-460.0,0.00018366,2]
[367389046,1750777840621,-460.0,0.00018366,2]
[367389049,1750777840630,-462.47135133,0.00018366,2]
[367389051,1750777840639,-460.0,0.00018366,2]
[367389053,1750777840649,-482.14,0.00018366,2]
[367389055,1750777840658,-460.0,0.00018366,2]
[367389057,1750777840667,-7227.29,0.00018366,2]
[367389058,1750777840676,-1004.57,0.00018366,2]
[367389060,1750777840686,-1133.54,0.00018366,2]
[367389062,1750777840695,-460.0,0.00018367,2]
[367389065,1750777840705,-460.0,0.00018367,2]
[367389067,1750777840715,-460.0,0.00018367,2]
[367389069,1750777840724,-408.81387624,0.00018367,2]
[367389071,1750777840733,-460.0,0.00018367,2]
[367389072,1750777840742,-460.0,0.00018367,2]
[367389074,1750777840752,-833.39,0.00018367,2]
[367389076,1750777840765,-460.0,0.00018367,2]
[367389079,1750777840775,-460.0,0.00018367,2]
[367389080,1750777840785,-460.0,0.00018367,2]
[367389083,1750777840795,-460.0,0.00018367,2]
[367389085,1750777840806,-83.15071118,0.00018367,2]
[367389099,1750777840920,-502.91928882,0.00018367,2]
[367389101,1750777840930,-460.0,0.00018367,2]
[367389103,1750777840940,-466.61,0.00018367,2]
[367389105,1750777840949,-972.37,0.00018367,2]
[367389107,1750777840958,-460.0,0.00018367,2]
[367389109,1750777840968,-460.0,0.00018367,2]
[367389111,1750777840977,-460.0,0.00018367,2]
[367389113,1750777840986,-219.51357869,0.00018367,2]
[367389115,1750777840998,-240.48642131,0.00018367,2]
[367389117,1750777841007,-460.0,0.00018367,2]
[367389119,1750777841016,-460.0,0.00018367,2]
[367389121,1750777841025,-460.0,0.00018367,2]
[367389123,1750777841035,-500.0,0.00018367,2]
[367389125,1750777841044,-1054.31,0.00018367,2]
[367389127,1750777841054,-460.0,0.00018367,2]
[367389129,1750777841063,-460.0,0.00018367,2]
[367389131,1750777841073,-621.0,0.00018367,2]
[367389133,1750777841082,-225.3610446,0.00018367,2]
[367389135,1750777841091,-2356.02,0.00018367,2]
[367389137,1750777841100,-460.0,0.00018367,2]
[367389139,1750777841110,-460.0,0.00018367,2]
[367389141,1750777841119,-460.0,0.00018367,2]
[367389143,1750777841128,-410.0,0.00018367,2]
[367389145,1750777841138,-827.03,0.00018367,2]
[367389165,1750777841309,-1346.75735021,0.00018367,2]
[367389347,1750777843600,-460.0,0.00018363,2]
[367389348,1750777843610,-406.60264979,0.00018367,2]
[367389349,1750777843619,-4434.74,0.00018367,2]
[367389350,1750777843629,-460.0,0.00018367,2]
[367389351,1750777843640,-460.0,0.00018367,2]
[367389352,1750777843649,-460.0,0.00018367,2]
[367389353,1750777843659,-460.0,0.00018367,2]
[367389354,1750777843668,-1555.44,0.00018367,2]
[367389355,1750777843678,-460.0,0.00018367,2]
[367389356,1750777843688,-460.0,0.00018367,2]
[367389357,1750777843704,-460.0,0.00018367,2]
[367389358,1750777843719,-460.0,0.00018367,2]
[367389359,1750777843731,-460.0,0.00018367,2]
[367389360,1750777843742,-460.0,0.00018367,2]
[367389361,1750777843755,-714.95,0.00018367,2]
[367389362,1750777843769,-460.0,0.00018367,2]
[367389363,1750777843778,-460.0,0.00018367,2]
[367389364,1750777843789,-460.0,0.00018367,2]
[367389365,1750777843799,-258.1015585,0.00018368,2]
[367389366,1750777843810,-469.80510097,0.00018368,2]
[367389367,1750777843820,-460.0,0.00018368,2]
[367389368,1750777843830,-263.29,0.00018368,2]
[367389369,1750777843840,-162.50778648,0.00018368,2]
[367389370,1750777843850,-460.0,0.00018368,2]
[367389372,1750777843860,-460.0,0.00018368,2]
[367389374,1750777843870,-460.0,0.00018368,2]
[367389375,1750777843880,-1530.05,0.00018368,2]
[367389376,1750777843890,-460.0,0.00018368,2]
[367389377,1750777843899,-611.79,0.00018368,2]
[367389378,1750777843909,-577.05616523,0.00018368,2]
[367389379,1750777843919,-460.0,0.00018368,2]
[367389380,1750777843928,-460.0,0.00018368,2]
[367389381,1750777843939,-460.0,0.00018368,2]
[367389382,1750777843949,-460.0,0.00018368,2]
[367389383,1750777843958,-460.0,0.00018368,2]
[367389384,1750777843968,-460.0,0.00018368,2]
[367389385,1750777843978,-1000.0,0.00018368,2]
[367389386,1750777843987,-460.0,0.00018368,2]
[367389387,1750777843997,-460.0,0.00018368,2]
[367389388,1750777844006,-460.0,0.00018368,2]
[367389389,1750777844016,-460.0,0.00018368,2]
[367389390,1750777844025,-430.0,0.00018368,2]
[367389391,1750777844035,-460.0,0.00018368,2]
[367389392,1750777844044,-460.0,0.00018368,2]
[367389393,1750777844054,-460.0,0.00018368,2]
[367389394,1750777844063,-460.0,0.00018368,2]
[367389395,1750777844073,-460.0,0.00018368,2]
[367389396,1750777844083,-460.0,0.00018368,2]
[367389397,1750777844093,-460.0,0.00018368,2]
[367389398,1750777844103,-460.0,0.00018368,2]
[367389399,1750777844113,-460.0,0.00018368,2]
[367389400,1750777844123,-460.0,0.00018368,2]
[367389401,1750777844135,-460.0,0.00018368,2]
[367389402,1750777844148,-460.0,0.00018368,2]
[367389403,1750777844169,-460.0,0.00018368,2]
[367389404,1750777844180,-460.0,0.00018368,2]
[367389405,1750777844190,-460.0,0.00018368,2]
[367389406,1750777844200,-472.16891074,0.00018368,2]
[367389407,1750777844212,-460.0,0.00018368,2]
[367389408,1750777844222,-460.0,0.00018368,2]
[367389409,1750777844231,-616.38,0.00018368,2]
[367389410,1750777844241,-460.0,0.00018369,2]
[367389411,1750777844251,-460.0,0.00018369,2]
[367389412,1750777844260,-460.0,0.00018369,2]
[367389413,1750777844270,-436.96312873,0.00018369,2]
[367389414,1750777844280,-460.0,0.00018369,2]
[367389415,1750777844289,-107.84114401,0.00018369,2]
[367389454,1750777845821,152.76,0.0002622,60]
[367389495,1750777846588,-430.0,0.00018363,2]
[367389496,1750777846600,-473.91455259,0.00018363,2]
[367389497,1750777846611,-347.75544741,0.00018363,2]
[367389498,1750777846621,-184.50935259,0.00018365,2]
[367389532,1750778417322,290.734172,0.00013699,2]
[367389534,1750778497973,1774.0,0.00017973,2]
[367389548,1750778751304,1560.5272682,0.00018082,2]
[367389549,1750778833213,4211.093424,0.00017353,2]